fUSD/lending_fUSD_20250702
["ID","MTS","AMOUNT","RATE_DAILY","PERIOD"]
[369059828,1751447471917,-1260.95093817,0.0002,2]
[369059829,1751447471927,-11927.26741851,0.0002,2]
[369059830,1751447471936,-1017.42394379,0.0002,2]
[369059831,1751447471945,-2787.49761412,0.0002,2]
[369059832,1751447471954,-218.03653756,0.0002,2]
[369059833,1751447471964,-1423.30933123,0.0002,5]
[369059834,1751447471974,-8300.0,0.0002,4]
[369059835,1751447471986,-490.0,0.0002,2]
[369059836,1751447471995,-490.0,0.0002,2]
[369059837,1751447472006,-490.0,0.0002,2]
[369059838,1751447472015,-159.36136445,0.0002,2]
[369059839,1751447472025,-490.0,0.0002,2]
[369059840,1751447472034,-2000.0,0.0002,2]
[369059841,1751447472043,-620.52,0.0002,2]
[369059842,1751447472053,-490.0,0.0002,2]
[369059843,1751447472062,-509.83137214,0.0002,2]
[369059844,1751447472072,-490.0,0.0002,2]
[369059845,1751447472081,-490.0,0.0002,2]
[369059846,1751447472090,-490.0,0.0002,2]
[369059847,1751447472100,-832.75,0.0002,2]
[369059848,1751447472109,-490.0,0.0002,2]
[369059849,1751447472119,-831.02,0.0002,2]
[369059850,1751447472129,-154.37,0.0002,2]
[369059851,1751447472138,-202.0,0.0002,2]
[369059852,1751447472148,-836.11932155,0.0002,3]
[369059853,1751447472157,-165.7,0.0002,2]
[369059854,1751447472167,-200.0,0.0002,2]
[369059855,1751447472176,-197.015284,0.0002,2]
[369059856,1751447472186,-197.015284,0.0002,2]
[369059857,1751447472196,-3430.582997,0.0002,2]
[369059858,1751447472210,-3430.582997,0.0002,2]
[369059859,1751447472219,-30000.0,0.0002,2]
[369059860,1751447472228,-4000.0,0.0002,4]
[369059861,1751447472238,-9049.14084996,0.0002001,2]
[369059862,1751447472247,-4990.49154534,0.0002001,2]
[369059863,1751447472256,-5772.0,0.0002001,2]
[369059864,1751447472266,-2000.0,0.0002001,2]
[369059865,1751447472278,-3139.738869,0.0002002,2]
[369059866,1751447472289,-242.80433655,0.00020057,2]
[369059867,1751447472299,-3500.0,0.0002006,2]
[369059868,1751447472308,-300.0,0.0002008,2]
[369059869,1751447472317,-552.51,0.00020096,7]
[369059870,1751447472326,-552.51,0.00020096,7]
[369059871,1751447472335,-224.3097969,0.00020096,2]
[369059872,1751447472345,-1683.71530163,0.0002015,2]
[369059873,1751447472355,-3899.93322083,0.00020202,2]
[369059874,1751447472365,-947.7575244,0.00020259,2]
[369059875,1751447472374,-490.0,0.00020273,2]
[369059876,1751447472384,-490.0,0.00020273,2]
[369059877,1751447472393,-490.0,0.00020273,2]
[369059878,1751447472402,-293.02,0.00020273,2]
[369059879,1751447472412,-620.52,0.00020273,2]
[369059880,1751447472421,-490.0,0.00020273,2]
[369059881,1751447472430,-596.66373318,0.00020273,2]
[369059882,1751447472440,-490.0,0.00020273,2]
[369059883,1751447472449,-832.75,0.00020273,2]
[369059884,1751447472459,-159.2,0.00020273,2]
[369059885,1751447472469,-831.02,0.00020273,2]
[369059886,1751447472478,-1615.0,0.00020274,2]
[369059887,1751447472488,-643.0,0.00020274,2]
[369059888,1751447472497,-154.37,0.00020296,2]
[369059889,1751447472507,-195.0,0.000203,2]
[369059890,1751447472516,-1573.28011379,0.00020339,2]
[369059891,1751447475283,-227.544792,0.0001726,2]
[369059892,1751447475293,-227.544792,0.00017625,2]
[369059893,1751447475302,-227.544792,0.000181,2]
[369059894,1751447475311,-15.06717101,0.00018186,2]
[369059895,1751447475341,-484.93282899,0.00018186,2]
[369059896,1751447475350,-500.0,0.00018186,2]
[369059897,1751447475359,-91.90105094,0.00018186,2]
[369059898,1751447488592,-500.0,0.00036164,60]
[369059899,1751447488635,-500.0,0.0003726,60]
[369059900,1751447489264,-500.0,0.00038356,60]
[369059901,1751447489299,-521.08006105,0.00039452,60]
[369059902,1751447489333,-836.11932155,0.0004,30]
[369059903,1751447489364,-500.0,0.00040059,30]
[369059904,1751447489401,-14824.14,0.000417,120]
[369059905,1751447489433,-5969.51,0.000417,120]
[369059906,1751447489465,-14749.18,0.000417,120]
[369059907,1751447489774,-239.96,0.000417,120]
[369059908,1751447489853,-500.0,0.00043329,30]
[369059909,1751447489888,-14837.44,0.000445,120]
[369059910,1751447489925,-15258.6,0.000445,120]
[369059911,1751447489959,-243.58384797,0.000445,120]
[369059912,1751447489989,-5914.24,0.000445,120]
[369059913,1751447490022,-940550.96695206,0.00045,120]
[369059914,1751447490053,-198.3,0.00045,120]
[369059915,1751447490085,-177.26917238,0.00045,120]
[369059916,1751447490115,-168.55673735,0.00045,120]
[369059917,1751447490150,-5969.650677,0.00045,120]
[369059918,1751447490180,-286.34,0.00045,120]
[369059919,1751447490214,-1000.0,0.00045,120]
[369059920,1751447490245,-1000.0,0.00045,120]
[369059921,1751447490276,-1000.0,0.00045,120]
[369059922,1751447490311,-1000.0,0.00045,120]
[369059923,1751447490343,-1000.0,0.00045,120]
[369059924,1751447490374,-1000.0,0.00045,120]
[369059925,1751447490407,-525.32,0.00045,120]
[369059926,1751447490439,-10000.0,0.00045,120]
[369059927,1751447490474,-26250.0,0.00045,120]
[369059928,1751447490507,-350.0,0.00045,120]
[369059929,1751447490539,-150.0,0.00045,120]
[369059930,1751447490572,-26174.812,0.00045111,120]
[369059931,1751447490607,-26174.812,0.00045111,120]
[369059932,1751447490641,-26174.812,0.00045111,120]
[369059933,1751447490676,-26174.813,0.00045111,120]
[369059934,1751447490710,-26174.812,0.00045111,120]
[369059936,1751447490748,-5000.0,0.00045205,65]
[369059937,1751447490785,-999.0,0.00045205,120]
[369059938,1751447490818,-4011.12415638,0.000453,120]
[369059939,1751447490852,-1500.0,0.0004544,44]
[369059940,1751447490885,-5951.2721669,0.00045492,120]
[369059941,1751447490918,-5652.89364247,0.000455,120]
[369059942,1751447490953,-1000000.0,0.000455,120]
[369059943,1751447490986,-1379.40986254,0.000457,60]
[369059944,1751447491020,-3000.0,0.000458,90]
[369059945,1751447491051,-184.2239539,0.000458,120]
[369059946,1751447491083,-455.91,0.000458,120]
[369059947,1751447491114,-996.26719091,0.000459,120]
[369059948,1751447491147,-206.9731,0.00045935,30]
[369059949,1751447491177,-437.79276022,0.00045985,120]
[369059950,1751447491212,-1000.0,0.0004599,120]
[369059951,1751447491246,-50000.0,0.00046,46]
[369059952,1751447491276,-1000.0,0.00046,30]
[369059953,1751447491309,-400.0,0.00046,120]
[369059954,1751447491340,-10000.0,0.00046,120]
[369059955,1751447491371,-125913.24545168,0.00046,30]
[369059956,1751447491403,-1500.0,0.00046,120]
[369059957,1751447491434,-1000000.0,0.00046,120]
[369059958,1751447491466,-1000000.0,0.00046,120]
[369059959,1751447491497,-2000.0,0.00046,120]
[369059960,1751447491530,-5078.39572959,0.00046,120]
[369059961,1751447491562,-155.28482124,0.00046,60]
[369059962,1751447491595,-155184.96044978,0.00046,30]
[369059963,1751447491627,-10000.0,0.00046,120]
[369059964,1751447491660,-4231.6441229,0.00046,120]
[369059965,1751447491693,-1556.79783783,0.00046,120]
[369059966,1751447491724,-482.76818459,0.000464,120]
[369059967,1751447491758,-404327.71879971,0.0004644,30]
[369059968,1751447500688,150.0,0.000146,2]
[369059969,1751447518643,-1000.0,0.00038972,60]
[369059970,1751447518680,-1000.0,0.0003952,60]
[369059971,1751447518719,-2000.0,0.0004,120]
[369059972,1751447518756,-1000.0,0.00040068,60]
[369059973,1751447518792,-1000.0,0.00040616,60]
[369059974,1751447518831,-15258.77,0.000445,120]
[369059975,1751447518866,-6018.13,0.0004594,120]
[369059976,1751447518898,-15241.64,0.0004594,120]
[369059977,1751447518931,-14910.57,0.0004594,120]
[369059978,1751447518964,-6011.09,0.0004594,120]
[369059979,1751447518996,-15207.92,0.0004594,120]
[369059980,1751447519029,-1000000.0,0.000465,120]
[369059981,1751447519061,-718.2459748,0.000465,120]
[369059982,1751447519093,-225.73254621,0.000465,120]
[369059983,1751447519129,-1519.93,0.00046575,120]
[369059984,1751447519162,-280.0190608,0.00046575,70]
[369059985,1751447519197,-999.0,0.00046575,120]
[369059986,1751447519229,-1386.07,0.00046575,60]
[369059987,1751447519261,-1916222.88241819,0.0004669,120]
[369059988,1751447524580,-1000.0,0.00041164,60]
[369059989,1751447524618,-1000.0,0.00041712,60]
[369059990,1751447524656,-5953.92,0.0004594,120]
[369059991,1751447524692,-4294.95389218,0.0004594,120]
[369059992,1751447524727,-300.0,0.0004644,120]
[369059993,1751447524763,-1338452.50758181,0.0004669,120]
[369059994,1751447524799,-1000.0,0.000467,120]
[369059995,1751447524835,-3000.0,0.000468,90]
[369059996,1751447524868,-1542.68352924,0.000468,120]
[369059997,1751447524903,-1519.93,0.00046849,120]
[369059998,1751447524939,-13200.2,0.00046923,117]
[369059999,1751447524976,-1000.0,0.0004695,120]
[369060000,1751447525013,-300.0,0.00046988,120]
[369060001,1751447525050,-1000.0,0.00046999,120]
[369060002,1751447525086,-1000.0,0.00047,120]
[369060003,1751447525123,-1000000.0,0.00047,120]
[369060004,1751447525160,-625435.80499677,0.00047,120]
[369060005,1751447529620,-1000.0,0.00042808,60]
[369060006,1751447529658,-1000.0,0.00043904,120]
[369060007,1751447529696,-6020.81,0.0004619,120]
[369060008,1751447529731,-300.0,0.00046689,120]
[369060009,1751447529766,-300.0,0.00046689,120]
[369060010,1751447529800,-300.0,0.00046689,120]
[369060011,1751447529837,-300.0,0.00046689,120]
[369060012,1751447529875,-374564.19500323,0.00047,120]
[369060013,1751447529914,-242.18815528,0.000471,120]
[369060014,1751447529952,-1519.93,0.00047123,120]
[369060015,1751447529988,-1519.93,0.00047397,120]
[369060016,1751447530024,-176.0,0.000474,120]
[369060017,1751447530059,-1000000.0,0.000475,120]
[369060018,1751447530093,-300.0,0.00047536,120]
[369060019,1751447530127,-1519.93,0.00047671,120]
[369060020,1751447530161,-3000.0,0.000478,90]
[369060021,1751447530196,-20000.0,0.000478,120]
[369060022,1751447530228,-597.0,0.000478,120]
[369060023,1751447530267,-310.05614036,0.000479,120]
[369060024,1751447530298,-1519.93,0.00047945,120]
[369060025,1751447530334,-999.0,0.00047945,120]
[369060026,1751447530367,-1000.0,0.00048,120]
[369060027,1751447530398,-2015.89452488,0.00048,120]
[369060028,1751447530431,-230.43779841,0.00048,120]
[369060029,1751447530464,-528.5103391,0.00048,120]
[369060030,1751447530496,-1580736.18803874,0.00048,60]
[369060031,1751447533809,-2000.0,0.00036,120]
[369060032,1751447534456,-1000.0,0.00044452,120]
[369060033,1751447534493,-1000.0,0.00045,120]
[369060034,1751447534528,-1000.0,0.00045,120]
[369060035,1751447534565,-1000.0,0.00045548,120]
[369060036,1751447534603,-151.0,0.00046689,120]
[369060037,1751447534639,-200.0,0.00046689,120]
[369060038,1751447534674,-300.0,0.00046689,120]
[369060039,1751447534710,-500.0,0.00046689,120]
[369060040,1751447534747,-500.0,0.00046689,120]
[369060041,1751447534786,-500.0,0.00046689,120]
[369060042,1751447534824,-207.4,0.00046689,120]
[369060043,1751447534862,-300.0,0.00046689,120]
[369060044,1751447534901,-500.0,0.00046689,120]
[369060045,1751447534940,-156.587,0.00046689,120]
[369060046,1751447534979,-215.0738,0.00046689,120]
[369060047,1751447535019,-500.0,0.00046689,120]
[369060048,1751447535056,-162.380719,0.00046689,120]
[369060049,1751447535092,-300.0,0.00046689,120]
[369060050,1751447535128,-224.49359403,0.00046689,120]
[369060051,1751447535163,-500.0,0.00046689,120]
[369060052,1751447535197,-168.3888056,0.00046689,120]
[369060053,1751447535232,-300.0,0.00046689,120]
[369060054,1751447535265,-160.0,0.00046689,120]
[369060055,1751447535302,-500.0,0.00046689,120]
[369060056,1751447535335,-500.0,0.00046689,120]
[369060057,1751447535366,-300.0,0.00046689,120]
[369060058,1751447535398,-165.92,0.00046689,120]
[369060059,1751447535428,-174.61919141,0.00046689,120]
[369060060,1751447535459,-500.0,0.00046689,120]
[369060061,1751447535491,-300.0,0.00046689,120]
[369060062,1751447535523,-500.0,0.00046689,120]
[369060063,1751447535556,-343.25719291,0.00046689,120]
[369060064,1751447535590,-181.08010149,0.00046689,120]
[369060065,1751447535624,-500.0,0.00046689,120]
[369060066,1751447535657,-172.05904,0.00046689,120]
[369060067,1751447535691,-405.79784944,0.00046689,120]
[369060068,1751447535726,-2983611.94270612,0.00048,60]
[369060069,1751447540457,-309.52001258,0.00041095,120]
[369060070,1751447540493,-1000.0,0.00043,120]
[369060071,1751447540530,-1000.0,0.00046096,120]
[369060072,1751447540563,-5931.13,0.0004619,120]
[369060073,1751447540596,-160.72457098,0.000464,90]
[369060074,1751447540626,-1000.0,0.00046644,120]
[369060075,1751447540658,-187.78006525,0.00046689,120]
[369060076,1751447540691,-178.42522448,0.00046689,120]
[369060077,1751447540723,-194.72792766,0.00046689,120]
[369060078,1751447540757,-199.27021378,0.00046689,120]
[369060079,1751447540789,-300.0,0.00046689,120]
[369060080,1751447540821,-201.93286099,0.00046689,120]
[369060081,1751447540855,-300.0,0.00046689,120]
[369060082,1751447540887,-209.40437684,0.00046689,120]
[369060083,1751447540920,-300.0,0.00046689,120]
[369060084,1751447540952,-217.15233878,0.00046689,120]
[369060085,1751447540983,-300.0,0.00046689,120]
[369060086,1751447541013,-152.59716778,0.00046689,120]
[369060087,1751447541044,-225.18697532,0.00046689,120]
[369060088,1751447541075,-233.51889341,0.00046689,120]
[369060089,1751447541106,-242.15909246,0.00046689,120]
[369060090,1751447541136,-1000.0,0.00047192,120]
[369060091,1751447541170,-615651.86925514,0.00048,60]
[369060092,1751447541204,-400.0,0.00048,120]
[369060093,1751447541239,-10000.0,0.00048,120]
[369060094,1751447541273,-1000000.0,0.00048,120]
[369060095,1751447541305,-1000000.0,0.00048,120]
[369060096,1751447541335,-3376.0,0.00048,120]
[369060097,1751447541368,-1796.80424,0.00048,120]
[369060098,1751447541402,-4231.6441229,0.00048,120]
[369060099,1751447541434,-1556.79783783,0.00048,120]
[369060100,1751447541466,-160.0,0.00048,120]
[369060101,1751447541498,-300.0,0.00048084,120]
[369060102,1751447541533,-1519.93,0.00048219,120]
[369060103,1751447541569,-1041.78877533,0.000483,120]
[369060104,1751447541605,-300.0,0.00048315,117]
[369060105,1751447541639,-1519.93,0.00048493,120]
[369060106,1751447541673,-344301.70604849,0.000485,120]
[369060108,1751447553966,-1000.0,0.00042,120]
[369060109,1751447554009,-346.0,0.00046,120]
[369060110,1751447554047,-6666.0,0.00046574,60]
[369060111,1751447554084,-251.11897888,0.00046689,120]
[369060112,1751447554121,-260.4103811,0.00046689,120]
[369060113,1751447554157,-300.0,0.00046689,120]
[369060114,1751447554193,-270.0455652,0.00046689,120]
[369060115,1751447554232,-500.0,0.00046689,120]
[369060116,1751447554270,-300.0,0.00046689,120]
[369060117,1751447554306,-280.03725112,0.00046689,120]
[369060118,1751447554346,-500.0,0.00046689,120]
[369060119,1751447554384,-290.39862941,0.00046689,120]
[369060120,1751447554420,-300.0,0.00046689,120]
[369060121,1751447554456,-151.0,0.00046689,120]
[369060122,1751447554494,-500.0,0.00046689,120]
[369060123,1751447554530,-151.0,0.00046689,120]
[369060124,1751447554568,-300.0,0.00046689,120]
[369060125,1751447554605,-500.0,0.00046689,120]
[369060126,1751447554642,-301.14337869,0.00046689,120]
[369060127,1751447554677,-202.0,0.00046689,120]
[369060128,1751447554710,-202.0,0.00046689,120]
[369060129,1751447554744,-202.028225,0.00046689,120]
[369060130,1751447554778,-151.0,0.00046689,120]
[369060131,1751447554811,-153.33420609,0.00046689,120]
[369060132,1751447554857,-300.0,0.00046689,120]
[369060133,1751447554895,-300.0,0.00046689,120]
[369060134,1751447554932,-300.0,0.00046689,120]
[369060135,1751447554969,-6105.26,0.000475,120]
[369060136,1751447555005,-1000.0,0.0004774,120]
[369060137,1751447555040,-655698.29395151,0.000485,120]
[369060138,1751447555073,-300.0,0.00048632,120]
[369060139,1751447555105,-1519.93,0.00048767,120]
[369060140,1751447555137,-3000.0,0.000488,90]
[369060141,1751447555169,-778.50395429,0.000488,120]
[369060142,1751447555203,-1000.0,0.000488,120]
[369060143,1751447555236,-1000.0,0.000488,120]
[369060144,1751447555271,-1000.0,0.000488,120]
[369060145,1751447555305,-1000.0,0.000488,120]
[369060146,1751447555338,-1000.0,0.000488,120]
[369060147,1751447555370,-1000.0,0.000488,120]
[369060148,1751447555403,-1000.0,0.000488,120]
[369060149,1751447555435,-151.0,0.000489,120]
[369060150,1751447555466,-1000.0,0.00048999,120]
[369060151,1751447555498,-1000.0,0.00049,120]
[369060152,1751447555531,-6283.38574932,0.00049,60]
[369060153,1751447555563,-407.24842211,0.00049,60]
[369060154,1751447555594,-197.36125062,0.00049,120]
[369060155,1751447555627,-1380.47433142,0.00049,120]
[369060156,1751447555658,-2220.0,0.00049,120]
[369060157,1751447555691,-2220.0,0.00049,120]
[369060158,1751447555724,-2220.0,0.00049,120]
[369060159,1751447555758,-2220.0,0.00049,120]
[369060160,1751447555793,-2220.0,0.00049,120]
[369060161,1751447555825,-2220.0,0.00049,120]
[369060162,1751447555860,-61875.14905541,0.00049,120]
[369060163,1751447555895,-1932.52580182,0.00049,120]
[369060164,1751447555931,-1000000.0,0.00049,120]
[369060165,1751447555966,-1000000.0,0.00049,120]
[369060166,1751447556001,-3376.0,0.00049,120]
[369060167,1751447556035,-500.0,0.00049015,60]
[369060168,1751447556070,-500.0,0.00049015,60]
[369060169,1751447556106,-500.0,0.00049015,60]
[369060170,1751447556142,-500.0,0.00049015,60]
[369060171,1751447556177,-500.0,0.00049015,60]
[369060172,1751447556212,-500.0,0.00049015,60]
[369060173,1751447556250,-500.0,0.00049015,60]
[369060174,1751447556285,-500.0,0.00049015,60]
[369060175,1751447556320,-500.0,0.00049015,60]
[369060176,1751447556355,-500.0,0.00049015,60]
[369060177,1751447556390,-500.0,0.00049015,60]
[369060178,1751447556424,-290.0,0.00049015,60]
[369060179,1751447556458,-150.0,0.00049015,60]
[369060180,1751447556491,-150.0,0.00049015,60]
[369060181,1751447556526,-150.0,0.00049015,60]
[369060182,1751447556561,-150.0,0.00049015,60]
[369060183,1751447556596,-209.04793915,0.00049015,60]
[369060184,1751447556631,-605.0,0.00049015,60]
[369060185,1751447556666,-605.0,0.00049015,60]
[369060186,1751447556702,-605.0,0.00049015,60]
[369060187,1751447556738,-605.0,0.00049015,60]
[369060188,1751447556775,-605.0,0.00049015,60]
[369060189,1751447556810,-605.0,0.00049015,60]
[369060190,1751447556845,-605.0,0.00049015,60]
[369060191,1751447556880,-605.0,0.00049015,60]
[369060192,1751447556915,-605.0,0.00049015,60]
[369060193,1751447556949,-605.0,0.00049015,60]
[369060194,1751447556982,-605.0,0.00049015,60]
[369060195,1751447557016,-605.0,0.00049015,60]
[369060196,1751447557050,-605.0,0.00049015,60]
[369060197,1751447557083,-605.0,0.00049015,60]
[369060198,1751447557116,-605.0,0.00049015,60]
[369060199,1751447557149,-605.0,0.00049015,60]
[369060200,1751447557181,-605.0,0.00049015,60]
[369060201,1751447557214,-605.0,0.00049015,60]
[369060202,1751447557252,-605.0,0.00049015,60]
[369060203,1751447557287,-605.0,0.00049015,60]
[369060204,1751447557320,-605.0,0.00049015,60]
[369060205,1751447557354,-605.0,0.00049015,60]
[369060206,1751447557642,-605.0,0.00049015,60]
[369060207,1751447557680,-620.58764006,0.00049015,60]
[369060208,1751447557715,-500.0,0.00049015,60]
[369060209,1751447557749,-500.0,0.00049015,60]
[369060210,1751447557784,-154.96437637,0.00049015,60]
[369060211,1751447557815,-500.0,0.00049015,60]
[369060212,1751447557848,-500.0,0.00049015,60]
[369060213,1751447557879,-500.0,0.00049015,60]
[369060214,1751447557911,-500.0,0.00049015,60]
[369060215,1751447557941,-500.0,0.00049015,60]
[369060216,1751447557971,-500.0,0.00049015,60]
[369060217,1751447558002,-445.36345395,0.00049015,60]
[369060218,1751447558034,-150.0,0.00049015,60]
[369060219,1751447558064,-164.29502866,0.00049015,60]
[369060220,1751447558095,-471.0,0.00049015,60]
[369060221,1751447558127,-471.0,0.00049015,60]
[369060222,1751447558157,-471.0,0.00049015,60]
[369060223,1751447558187,-471.0,0.00049015,60]
[369060224,1751447558218,-471.0,0.00049015,60]
[369060225,1751447558250,-471.0,0.00049015,60]
[369060226,1751447558280,-471.0,0.00049015,60]
[369060227,1751447558309,-471.0,0.00049015,60]
[369060228,1751447558339,-471.0,0.00049015,60]
[369060229,1751447558368,-471.0,0.00049015,60]
[369060230,1751447558398,-471.0,0.00049015,60]
[369060231,1751447558428,-471.0,0.00049015,60]
[369060232,1751447558458,-471.0,0.00049015,60]
[369060233,1751447558489,-471.0,0.00049015,60]
[369060234,1751447558520,-1519.93,0.00049041,120]
[369060235,1751447558551,-300.0,0.0004918,120]
[369060236,1751447558587,-85666.13959087,0.000493,120]
[369060237,1751447558623,-85666.13959087,0.000493,120]
[369060238,1751447558657,-12901.88324808,0.000493,120]
[369060259,1751448241986,160.03,0.00013699,2]
[369060260,1751448274188,151.0,0.00013699,2]
[369060261,1751448274372,151.0,0.00013699,2]
[369060262,1751448275061,151.0,0.00013699,2]
[369060263,1751448275777,254.49464107,0.00013699,2]
[369060282,1751448527593,1000.0,0.00013699,2]
[369060283,1751448527909,1000.0,0.00013784,2]
[369060284,1751448528250,1000.0,0.0001387,2]
[369060285,1751448528754,1000.0,0.00013955,2]
[369060286,1751448528986,1000.0,0.00014041,2]
[369060287,1751448529211,1000.0,0.00014127,2]
[369060288,1751448529494,1000.0,0.00014212,2]
[369060289,1751448529770,330.80608579,0.00014298,2]
[369060290,1751448529793,669.19391421,0.00014298,2]
[369060291,1751448529822,156.16423157,0.00013368,2]
[369060292,1751448530068,1000.0,0.00014384,2]
[369060293,1751448530368,1000.0,0.00014469,2]
[369060294,1751448530788,1000.0,0.00014555,2]
[369060312,1751448574353,151.0,0.00014555,2]
[369060321,1751448632426,-1000.0,0.0001464,2]
[369060322,1751448632436,-1000.0,0.00014726,2]
[369060323,1751448632446,-1000.0,0.00014812,2]
[369060324,1751448632455,-487.81906851,0.00014897,2]
[369060328,1751448632543,-512.18093149,0.00014897,2]
[369060329,1751448632552,-1200.0,0.00014899,2]
[369060330,1751448632561,-1055.32208689,0.000149,2]
[369060331,1751448632572,-2207.16957086,0.000149,2]
[369060333,1751448632585,-3956.61904056,0.000149,2]
[369060335,1751448632594,-220.0,0.00014943,2]
[369060336,1751448632604,-1000.0,0.00014983,2]
[369060338,1751448632613,-250.0,0.00015,2]
[369060340,1751448632622,-160.0,0.00015,5]
[369060342,1751448632635,-220.0,0.00015002,2]
[369060344,1751448632644,-1000.0,0.00015068,2]
[369060347,1751448632654,-220.0,0.00015092,2]
[369060349,1751448632663,-1000.0,0.00015154,2]
[369060351,1751448632673,-220.0,0.00015192,2]
[369060353,1751448632682,-1000.0,0.0001524,2]
[369060354,1751448632691,-600.0,0.00015324,2]
[369060356,1751448632702,-1000.0,0.00015325,2]
[369060358,1751448632711,-1000.0,0.00015411,2]
[369060359,1751448632721,-220.0,0.00015477,2]
[369060360,1751448632730,-220.0,0.00015494,2]
[369060361,1751448632739,-1000.0,0.00015497,2]
[369060362,1751448632748,-220.0,0.00015512,2]
[369060363,1751448632757,-1000.0,0.00015582,2]
[369060364,1751448632766,-220.0,0.00015657,2]
[369060365,1751448632775,-1000.0,0.00015668,2]
[369060366,1751448632784,-7219.11069821,0.00015693,2]
[369060367,1751448632793,-1000.0,0.00015753,2]
[369060368,1751448632803,-1000.0,0.00015839,2]
[369060369,1751448632813,-220.0,0.00015843,2]
[369060370,1751448632822,-220.0,0.0001588,2]
[369060371,1751448632832,-220.0,0.00015884,2]
[369060372,1751448632841,-21117.45,0.00015901,2]
[369060373,1751448632850,-1000.0,0.00015925,2]
[369060375,1751448632859,-220.0,0.0001596,2]
[369060377,1751448632869,-1000.0,0.00015984,2]
[369060379,1751448632878,-176.74,0.00016007,2]
[369060381,1751448632887,-1000.0,0.0001601,2]
[369060383,1751448632896,-220.0,0.00016026,2]
[369060385,1751448632906,-220.0,0.00016041,2]
[369060387,1751448632915,-1000.0,0.00016096,2]
[369060389,1751448632924,-220.0,0.00016099,2]
[369060391,1751448632933,-200.0,0.00016109,2]
[369060393,1751448632942,-29999.99,0.00016116,2]
[369060395,1751448632951,-1000.0,0.00016182,2]
[369060397,1751448632961,-1000.0,0.00016267,2]
[369060399,1751448632970,-220.0,0.00016288,2]
[369060401,1751448632980,-500.0,0.00016338,2]
[369060403,1751448632989,-1000.0,0.00016353,2]
[369060405,1751448632998,-1680.0,0.00016389,2]
[369060406,1751448633007,-300.0,0.00016437,2]
[369060407,1751448633016,-500.0,0.00016438,2]
[369060408,1751448633026,-504.34374756,0.00016438,2]
[369060409,1751448633035,-1000.0,0.00016438,2]
[369060410,1751448633044,-220.0,0.00016448,2]
[369060411,1751448633053,-7219.11069821,0.00016486,2]
[369060412,1751448633062,-1000.0,0.00016524,2]
[369060413,1751448633072,-500.0,0.00016535,2]
[369060414,1751448633081,-500.0,0.00016535,2]
[369060415,1751448633090,-150.0,0.00016539,2]
[369060416,1751448633098,-220.0,0.00016548,2]
[369060417,1751448633107,-500.0,0.00016589,2]
[369060418,1751448633116,-1000.0,0.0001661,2]
[369060419,1751448633125,-28050.51258426,0.00016612,2]
[369060420,1751448633137,-1346.44034462,0.00016612,2]
[369060421,1751448633168,-407.0,0.00016612,2]
[369060422,1751448633179,-432.49282803,0.00016612,2]
[369060423,1751448633189,-1228.92309174,0.00016612,2]
[369060424,1751448633200,-3822.81178331,0.00016612,2]